bitfinex/quotes_ETHUSD_20241212
["timestamp","ask_amount","ask_price","bid_price","bid_amount"]
[1734024076045,0.55,3939.2,3938.2,2.5392]
[1734024076245,0.7581,3938.9,3938.2,2.5392]
[1734024076488,0.55,3938.8,3938.2,2.5392]
[1734024081347,0.55,3939.0,3938.2,2.5392]
[1734024083070,3.0,3939.9,3938.3,0.7987]
[1734024083071,0.55,3939.2,3938.3,0.7987]
[1734024083273,0.55,3939.0,3938.3,0.7987]
[1734024083470,0.8157,3939.3,3938.3,0.7987]
[1734024084050,0.7721,3939.9,3938.3,0.7987]
[1734024084376,0.7721,3939.9,3938.4,0.7993]
[1734024084581,0.01427865,3939.8,3938.4,3.3384]
[1734024084776,0.7721,3939.9,3938.4,3.3384]
[1734024085091,0.7721,3939.9,3938.5,0.7896]
[1734024085238,0.7721,3939.9,3938.6,0.7896]
[1734024085571,0.7721,3939.9,3938.6,3.3286]
[1734024085960,0.55,3939.8,3938.6,3.3286]
[1734024087047,0.55,3939.6,3938.6,3.3286]
[1734024090290,0.55,3939.8,3938.6,3.3286]
[1734024091415,0.55,3940.1,3938.7,0.7997]
[1734024091622,0.55,3939.9,3938.7,0.7997]
[1734024091917,0.55,3940.1,3938.7,3.3386]
[1734024092078,0.55,3939.9,3938.7,3.3386]
[1734024092274,0.56427865,3939.9,3938.7,3.3386]
[1734024092510,0.83318682,3939.8,3938.7,3.3386]
[1734024092690,0.55,3939.7,3938.7,3.3386]
[1734024092889,0.55,3939.9,3938.7,3.3386]
[1734024093090,0.55,3939.7,3938.7,3.3386]
[1734024093987,0.55,3939.8,3938.7,3.3386]
[1734024094163,0.55,3939.9,3938.8,0.8106]
[1734024094369,0.55,3940.1,3938.9,0.7666]
[1734024094569,1.38370215,3940.1,3938.9,0.7666]
[1734024094781,0.83369633,3940.0,3938.9,0.7666]
[1734024094983,0.55,3939.9,3938.9,3.3054]
[1734024095270,0.55,3940.0,3938.9,3.3054]
[1734024095477,0.55,3940.1,3938.9,3.3054]
[1734024095994,0.55,3939.9,3938.9,3.3054]
[1734024096200,0.55,3940.1,3938.9,3.3054]
[1734024096394,1.3836315,3940.1,3938.9,3.3054]
[1734024096598,0.55,3939.9,3938.9,3.3054]
[1734024096963,1.80035099,3940.1,3938.9,3.3054]
[1734024097163,0.83357652,3940.0,3938.9,3.3054]
[1734024097363,0.55,3939.9,3938.9,3.3054]
[1734024097800,0.01427865,3939.8,3938.9,3.3054]
[1734024098002,0.55,3939.6,3938.9,3.3054]
[1734024098297,0.01427865,3939.5,3938.9,2.5388]
[1734024098597,0.55,3939.4,3938.9,2.5388]
[1734024099400,2.30354724,3939.6,3938.9,2.5388]
[1734024099401,0.55,3939.6,3938.9,2.5388]
[1734024099894,2.4044682,3940.1,3939.0,0.8196]
[1734024100222,1.24861809,3940.0,3939.0,0.8196]
[1734024100363,3.10232335,3940.1,3939.0,0.8196]
[1734024100696,0.7989,3940.1,3939.0,0.8196]
[1734024100864,1.85373145,3940.1,3939.0,0.8196]
[1734024101263,0.55,3940.0,3939.0,0.8196]
[1734024102074,1.05483145,3940.3,3939.0,0.8196]
[1734024102282,0.796,3940.4,3939.0,0.8196]
[1734024102790,1.05483145,3940.3,3939.0,0.8196]
[1734024103020,1.39954551,3940.3,3939.0,0.8196]
[1734024103226,1.05483145,3940.3,3939.0,3.3583]
[1734024103403,0.55,3940.3,3939.0,3.3583]
[1734024103602,1.7982903,3940.3,3939.0,3.3583]
[1734024103801,0.01427865,3940.2,3939.0,3.3583]
[1734024104305,0.55,3940.1,3939.0,3.3583]
[1734024104505,0.55,3939.9,3939.0,3.3583]
[1734024106937,0.55,3939.6,3939.0,2.5387]
[1734024107140,0.01427865,3939.5,3939.0,2.5387]
[1734024107341,2.85160409,3939.6,3939.0,2.5387]
[1734024107528,0.55,3939.4,3939.0,2.5387]
[1734024110160,1.60483145,3939.4,3939.0,2.5387]
[1734024110534,2.30196182,3939.3,3939.0,2.5387]
[1734024110864,0.55,3939.2,3939.0,2.5387]
[1734024111221,0.55,3939.3,3939.0,2.5387]
[1734024111574,1.97570977,3939.3,3939.0,2.5387]
[1734024112529,3.22380432,3939.3,3939.0,2.5387]
[1734024112858,0.55,3939.1,3939.0,2.5387]
[1734024113160,1.05483145,3939.3,3939.0,2.5387]
[1734024113380,1.05483145,3939.7,3939.1,0.7765]
[1734024113608,1.24842164,3939.8,3939.1,0.7765]
[1734024113899,2.93136096,3940.3,3939.1,0.7765]
[1734024113900,1.05483145,3940.0,3939.1,0.7765]
[1734024114177,1.05483145,3940.1,3939.1,0.7765]
[1734024114469,0.8221,3940.3,3939.2,0.7907]
[1734024114470,1.05483145,3940.3,3939.2,0.7907]
[1734024115228,1.05483145,3940.1,3939.2,0.7907]
[1734024115542,0.55,3940.0,3939.2,0.7907]
[1734024115731,0.55,3940.1,3939.2,0.7907]
[1734024116649,1.60483145,3940.1,3939.2,0.7907]
[1734024117039,2.8448734,3940.1,3939.2,0.7907]
[1734024117374,0.55,3939.9,3939.2,0.7907]
[1734024117581,1.60483145,3940.1,3939.2,0.7907]
[1734024118250,1.60483145,3939.9,3939.1,2.5386]
[1734024118434,1.05483145,3939.3,3939.1,2.5386]
[1734024118633,2.38913145,3939.2,3939.1,2.5386]
[1734024118825,2.57446575,3939.2,3939.1,2.5386]
[1734024119028,5.57446575,3939.2,3939.1,2.5386]
[1734024119340,6.77498514,3939.2,3938.3,0.8244]
[1734024119557,0.55,3938.6,3938.3,0.8244]
[1734024119943,1.06183047,3938.8,3938.3,0.8244]
[1734024119944,0.55,3938.7,3938.3,0.8244]
[1734024121797,0.55,3938.7,3937.9,0.7801]
[1734024121993,0.55,3938.5,3937.3,0.7801]
[1734024122288,0.55,3938.3,3937.3,0.7801]
[1734024122755,0.55,3938.4,3937.3,0.7801]
[1734024123368,0.55,3938.6,3937.3,0.7801]
[1734024123786,1.06183047,3938.7,3937.3,0.7801]
[1734024123787,0.55,3938.7,3937.3,0.7801]
[1734024124086,1.06183047,3938.8,3937.0,1.08110694]
[1734024124087,2.85170367,3938.8,3937.5,0.8194]
[1734024124689,1.61183047,3938.8,3937.5,0.8194]
[1734024124908,2.8516121,3938.8,3937.5,0.8194]
[1734024125057,0.55,3938.8,3937.5,0.8194]
[1734024125458,1.06183047,3939.1,3937.6,0.90016074]
[1734024125677,2.12366094,3939.5,3937.8,0.7726]
[1734024125678,1.06183047,3939.5,3937.8,0.7726]
[1734024125886,2.30126615,3939.5,3938.0,0.7726]
[1734024126188,1.23943568,3939.4,3938.0,0.7726]
[1734024126402,0.7878,3939.6,3938.2,0.7948]
[1734024126403,1.84963047,3939.6,3938.2,0.7948]
[1734024126559,2.30134313,3939.5,3938.2,0.7948]
[1734024126754,1.06183047,3939.5,3938.2,0.7948]
[1734024127558,0.55,3939.4,3938.2,0.7948]
[1734024127789,1.07318888,3939.4,3938.2,0.7948]
[1734024128094,0.55,3939.1,3938.2,0.7948]
[1734024128304,1.61183047,3939.1,3938.2,0.7948]
[1734024129381,1.61183047,3939.1,3937.4,0.8293]
[1734024129382,1.06183047,3938.6,3937.4,0.8293]
[1734024129580,0.793,3938.4,3937.4,0.8293]
[1734024129779,5.40861756,3938.3,3936.7,0.8293]
[1734024130110,0.55,3938.1,3936.7,0.8293]
[1734024130261,3.02938361,3938.1,3936.7,0.8293]
[1734024130483,0.55,3938.2,3936.7,0.8293]
[1734024130658,0.01427865,3938.1,3936.7,0.8293]
[1734024130908,0.55,3937.9,3936.7,0.8293]
[1734024131258,0.01427865,3937.8,3936.7,0.8293]
[1734024131595,0.55,3937.9,3936.7,0.8293]
[1734024131751,0.01427865,3938.0,3936.7,0.8293]
[1734024132564,0.793,3937.9,3936.7,0.8293]
[1734024132764,0.55,3937.7,3936.7,0.8293]
[1734024133093,0.56427865,3937.7,3936.7,0.8293]
[1734024133803,0.55,3937.9,3936.7,0.8293]
[1734024134151,1.23859832,3938.0,3936.9,0.8028]
[1734024135256,0.55,3937.9,3936.9,0.8028]
[1734024135996,0.55,3937.9,3937.0,0.0253962]
[1734024136163,0.55,3937.9,3936.9,0.8028]
[1734024137319,0.72885983,3937.9,3936.9,0.8028]
[1734024137523,0.01427865,3937.8,3936.9,0.8028]
[1734024137695,0.55,3937.7,3936.9,0.8028]
[1734024137898,0.01427865,3937.6,3936.9,0.8028]
[1734024138102,0.55,3937.7,3936.9,0.8028]
[1734024138431,0.55,3937.5,3936.9,0.8028]
[1734024139025,0.55,3938.2,3936.9,0.8028]
[1734024140583,0.55,3938.5,3937.0,0.784]
[1734024142420,0.55,3938.5,3937.1,0.02538388]
[1734024142609,0.55,3938.3,3937.2,0.8113]
[1734024143520,0.01427865,3938.7,3937.2,0.8113]
[1734024143719,0.8303,3939.0,3937.2,0.8113]
[1734024144347,0.84457865,3939.0,3937.2,0.8113]
[1734024144574,0.55,3938.7,3937.2,0.8113]
[1734024144842,0.55,3938.5,3937.2,0.8113]
[1734024145058,0.01427865,3938.4,3937.2,0.8113]
[1734024145209,0.55,3938.5,3937.2,0.8113]
[1734024145541,0.01427865,3938.4,3937.2,0.8113]
[1734024145715,0.55,3938.3,3937.2,0.8113]
[1734024146037,0.55,3938.1,3937.2,0.8113]
[1734024146223,0.55,3938.3,3937.2,0.8113]
[1734024150367,3.56427865,3938.3,3937.2,0.8113]
[1734024150516,2.29897127,3938.2,3935.9,0.791]
[1734024150716,2.40597526,3937.6,3935.9,0.791]
[1734024150981,0.55,3937.3,3935.9,0.791]
[1734024151113,0.01427865,3937.2,3935.9,0.791]
[1734024151316,0.55,3937.1,3935.9,0.791]
[1734024151547,0.01427865,3937.0,3935.9,0.791]
[1734024151738,0.55,3936.8,3935.9,0.791]
[1734024153731,0.55,3936.8,3934.4,1.19198633]
[1734024153732,1.3683,3936.6,3934.4,0.8099]
[1734024153933,0.01427865,3936.5,3934.1,0.7798]
[1734024154135,0.01427865,3936.5,3934.2,2.18669317]
[1734024154358,0.01427865,3936.5,3934.3,0.7798]
[1734024154658,0.55,3936.4,3934.3,0.7798]
[1734024157588,0.56427865,3936.4,3934.3,0.7798]
[1734024157888,2.40597526,3936.0,3934.3,0.7798]
[1734024158156,0.8028,3935.8,3934.3,0.7798]
[1734024158357,0.56427865,3935.7,3934.3,0.7798]
[1734024158560,3.55,3935.5,3934.3,0.7798]
[1734024158876,0.01427865,3935.4,3934.3,0.7798]
[1734024159054,3.55,3935.5,3934.3,0.7798]
[1734024159225,3.56427865,3935.5,3934.3,0.7798]
[1734024159439,3.55,3935.5,3934.3,0.7798]
[1734024159639,0.40417079,3935.4,3934.3,0.7798]
[1734024159866,2.40597526,3935.6,3934.3,0.7798]
[1734024160069,3.56427865,3935.5,3934.3,0.7798]
[1734024163579,3.8324,3936.3,3934.1,0.81891589]
[1734024163801,3.8324,3936.3,3934.0,1.00107778]
[1734024163802,3.8324,3936.3,3934.5,0.7935]
[1734024164110,0.01427865,3936.2,3934.5,0.7935]
[1734024164284,0.32526539,3936.1,3934.5,0.7935]
[1734024165379,0.55,3936.0,3934.5,0.7935]
[1734024166239,0.01427865,3935.9,3934.5,0.7935]
[1734024166886,3.01427865,3935.9,3934.5,0.7935]
[1734024167066,0.01427865,3935.9,3934.5,0.7935]
[1734024167349,0.69124891,3936.0,3934.5,0.7935]
[1734024167555,3.09722417,3936.0,3934.5,0.7935]
[1734024167878,0.55,3935.8,3934.5,0.7935]
[1734024168085,0.01427865,3935.7,3934.5,0.7935]
[1734024168375,0.55,3935.8,3934.5,0.7935]
[1734024169744,0.01427865,3935.7,3934.5,0.7935]
[1734024173691,0.55,3935.8,3934.5,0.7935]
[1734024173895,0.55,3935.6,3934.5,0.7935]
[1734024175257,0.01427865,3935.5,3934.5,0.7935]
[1734024177998,1.31907865,3935.6,3934.5,0.7935]
[1734024178296,0.55,3935.6,3934.5,0.7935]
[1734024179683,0.01427865,3935.5,3934.5,0.7935]
[1734024180598,0.55,3935.4,3934.5,0.7935]
[1734024180761,0.55,3935.2,3934.5,0.7935]
[1734024181174,0.01427865,3935.1,3934.5,0.7935]
[1734024182208,0.01427865,3935.3,3934.5,0.7935]
[1734024183274,0.55,3935.1,3934.5,0.7935]
[1734024184212,0.55,3935.4,3934.5,0.7935]
[1734024184543,0.55,3935.2,3934.5,0.7935]
[1734024184670,0.01427865,3935.1,3934.5,0.7935]
[1734024185621,2.40597526,3934.8,3934.0,1.00107778]
[1734024185918,3.55,3934.2,3934.0,1.00107778]
[1734024186215,1.14559753,3934.1,3934.0,1.00107778]
[1734024187018,0.55,3934.1,3934.0,1.00107778]
[1734024187828,2.40597526,3935.1,3934.0,1.76117778]
[1734024188311,2.42025391,3935.1,3934.0,1.76117778]
[1734024188915,3.7767,3934.6,3934.0,1.00107778]
[1734024189208,0.01427865,3934.5,3934.0,1.00107778]
[1734024189408,0.55,3934.3,3934.0,1.00107778]
[1734024189610,0.56427865,3934.3,3934.0,1.00107778]
[1734024189986,0.55,3934.3,3934.0,1.00107778]
[1734024190189,0.55,3934.3,3934.1,0.7601]
[1734024190435,0.7767,3935.7,3934.1,0.7601]
[1734024190593,2.65457617,3936.3,3934.2,0.02541323]
[1734024190922,1.06183047,3936.5,3934.3,0.7601]
[1734024191133,1.06183047,3936.5,3934.0,1.00107778]
[1734024191134,0.01427865,3936.5,3934.4,0.78550681]
[1734024191286,2.40597526,3937.1,3934.4,0.78550681]
[1734024191479,0.01427865,3937.0,3934.6,0.7871]
[1734024191717,0.01427865,3937.4,3934.8,0.7871]
[1734024192011,0.01427865,3937.4,3934.3,4.33713455]
[1734024192012,0.42586844,3937.3,3935.0,0.7871]
[1734024192211,0.01427865,3937.2,3935.0,0.7871]
[1734024192414,0.1275637,3936.8,3935.0,0.7871]
[1734024192588,0.55,3936.7,3935.0,0.7871]
[1734024195690,0.55,3936.7,3935.2,0.7735]
[1734024200529,0.55,3936.5,3935.2,0.7735]
[1734024200688,0.55,3936.3,3935.2,0.7735]
[1734024200906,0.01427865,3936.2,3935.2,0.7735]
[1734024202517,0.55,3936.1,3935.2,0.7735]
[1734024202916,0.01427865,3936.0,3935.2,0.7735]
[1734024203241,0.55,3936.1,3935.2,0.7735]
[1734024203443,0.55,3935.9,3935.2,0.7735]
[1734024208470,0.55,3936.2,3935.2,0.7735]
[1734024208769,0.01427865,3936.2,3935.2,0.7735]
[1734024209837,0.55,3936.3,3935.2,0.7735]
[1734024210579,0.01427865,3936.2,3935.2,0.7735]
[1734024210756,0.55,3936.0,3935.2,0.7735]
[1734024210961,0.56427865,3936.0,3935.2,0.7735]
[1734024211130,0.01427865,3936.0,3935.2,0.7735]
[1734024211661,0.01427865,3936.2,3935.2,0.7735]
[1734024212643,0.55,3936.0,3934.1,0.8295]
[1734024212845,0.55,3935.8,3934.1,0.8295]
[1734024213045,0.01427865,3935.7,3934.1,0.8295]
[1734024213735,3.55,3935.8,3934.1,0.8295]
[1734024214145,0.01427865,3935.7,3934.1,0.8295]
[1734024214362,1.06183047,3936.2,3934.3,0.8295]
[1734024214572,4.06183047,3936.5,3934.5,0.8295]
[1734024214760,3.99872096,3936.7,3934.5,0.8295]
[1734024214761,0.26373493,3936.3,3934.5,0.8295]
[1734024214962,0.26373493,3936.3,3934.7,0.8295]
[1734024215480,0.01427865,3936.6,3934.7,0.8295]
[1734024215685,0.56427865,3936.6,3934.7,0.8295]
[1734024216597,3.56427865,3936.6,3934.7,0.8295]
[1734024216809,0.56427865,3936.6,3934.7,0.8295]
[1734024217089,1.06183047,3937.2,3934.9,0.8013]
[1734024217286,0.30804446,3937.1,3935.0,0.8013]
[1734024217587,0.01427865,3937.1,3935.1,0.8013]
[1734024218680,1.61183047,3936.9,3935.1,0.8013]
[1734024218911,0.01427865,3936.8,3935.1,0.8013]
[1734024219212,0.55,3936.6,3935.1,0.8013]
[1734024219367,0.55,3936.4,3935.1,0.8013]
[1734024220567,0.55,3936.7,3935.2,0.83487941]
[1734024220767,0.55,3936.8,3935.2,0.8113]
[1734024220964,5.40597526,3936.2,3935.2,0.8113]
[1734024221240,4.17100753,3936.1,3934.1,0.8113]
[1734024221371,0.55,3935.7,3934.1,0.8113]
[1734024221710,3.0,3935.3,3934.1,0.8113]
[1734024221917,2.40597526,3935.0,3934.1,0.8113]
[1734024222065,3.56427865,3934.9,3934.1,0.8113]
[1734024222283,0.55,3934.7,3934.1,0.8113]
[1734024222463,0.01427865,3934.6,3934.1,0.8113]
[1734024222729,0.01427865,3934.6,3934.0,1.00107778]
[1734024223271,0.55,3934.7,3934.0,1.00107778]
[1734024223508,0.55,3935.2,3934.0,1.00107778]
[1734024223744,0.55,3935.0,3934.0,1.00107778]
[1734024223918,0.56427865,3935.0,3934.0,1.00107778]
[1734024224733,2.97025391,3935.0,3934.0,1.00107778]
[1734024225067,0.55,3934.1,3934.0,0.8133757]
[1734024226370,0.56427865,3934.1,3933.2,0.8]
[1734024226653,0.55,3933.9,3933.2,0.8]
[1734024226823,0.01427865,3933.8,3933.2,0.8]
[1734024229516,0.01427865,3933.8,3932.7,0.7581]
[1734024230738,0.55,3933.9,3932.7,0.7581]
[1734024231455,0.01427865,3933.8,3932.7,0.7581]
[1734024231651,0.55,3933.6,3932.7,0.7581]
[1734024231856,0.01427865,3933.5,3932.7,0.7581]
[1734024232392,0.55,3933.6,3932.7,0.7581]
[1734024232393,0.56427865,3933.6,3932.7,0.7581]
[1734024232683,0.55,3933.6,3932.7,0.7581]
[1734024233164,0.56427865,3933.6,3932.7,0.7581]
[1734024233595,0.55,3933.6,3932.7,0.7581]
[1734024234067,0.56427865,3933.6,3932.7,0.7581]
[1734024235122,0.16732396,3933.7,3932.7,0.7581]
[1734024235243,0.8206,3934.4,3932.7,0.7581]
[1734024235538,0.8206,3934.7,3932.7,0.7581]
[1734024235735,0.01427865,3934.6,3932.7,0.7581]
[1734024236378,2.98860979,3934.6,3932.7,0.7581]
[1734024236780,0.55,3934.5,3932.7,0.7581]
[1734024237100,0.55,3934.3,3932.7,0.7581]
[1734024237275,0.01427865,3934.2,3932.7,0.7581]
[1734024237457,0.55,3934.3,3932.7,0.7581]
[1734024237660,0.01427865,3934.2,3932.7,0.7581]
[1734024238940,0.56427865,3934.3,3932.7,0.7581]
[1734024240074,0.55,3934.3,3932.7,0.7581]
[1734024240720,0.01427865,3934.2,3932.7,0.7581]
[1734024241729,0.55,3934.3,3932.7,0.7581]
[1734024241879,0.01427865,3934.2,3932.7,0.7581]
[1734024242304,0.56427865,3934.3,3932.7,0.7581]
[1734024246049,0.55,3934.3,3932.9,0.7777]
[1734024246256,0.70178057,3935.1,3933.1,0.7777]
[1734024246402,0.01427865,3935.3,3933.1,0.7777]
[1734024247357,2.42988962,3935.3,3933.1,0.7777]
[1734024247956,0.55,3935.2,3933.1,0.7777]
[1734024249235,0.01427865,3935.1,3933.1,0.7777]
[1734024249454,0.55,3935.2,3933.1,0.93163508]
[1734024249668,0.9231911,3935.2,3933.1,0.93163508]
[1734024249837,1.015947,3935.6,3933.1,0.90622477]
[1734024250165,2.41561097,3935.7,3933.3,0.7947]
[1734024250804,0.01427865,3935.6,3933.3,0.7947]
[1734024251137,2.41561097,3935.7,3933.3,0.7947]
[1734024251436,2.41561097,3935.7,3933.4,0.87430441]
[1734024251629,0.3200211,3935.6,3933.5,0.8221]
[1734024251944,0.55,3935.5,3933.5,0.84751352]
[1734024252131,2.41561097,3935.3,3933.5,0.8221]
[1734024252324,0.3200211,3935.6,3933.5,0.8221]
[1734024252325,0.55,3934.8,3933.5,0.8221]
[1734024252639,0.55,3934.4,3933.5,0.8221]
[1734024252804,0.55,3934.0,3933.5,0.8221]
[1734024253338,0.01427865,3933.9,3933.5,0.8221]
[1734024253752,0.01427865,3933.9,3931.6,1.08550059]
[1734024253753,0.01427865,3933.9,3933.2,0.7862]
[1734024255312,0.55,3933.6,3931.7,0.8208]
[1734024255517,0.55,3933.4,3931.7,0.8208]
[1734024255741,0.01427865,3933.3,3931.7,0.8208]
[1734024255926,0.55,3933.4,3931.7,0.8208]
[1734024256327,0.01427865,3933.3,3931.7,0.8208]
[1734024256924,0.56427865,3933.4,3931.7,0.8208]
[1734024257554,0.55,3933.4,3931.7,0.8208]
[1734024258125,0.01427865,3933.3,3931.7,0.8208]
[1734024258328,0.56427865,3933.4,3931.7,0.8208]
[1734024259429,0.55,3933.4,3931.7,0.8208]
[1734024259836,0.01427865,3933.3,3931.7,0.8208]
[1734024260148,0.56427865,3933.4,3931.7,0.8208]
[1734024264573,0.55,3933.2,3931.7,0.8208]
[1734024264749,2.97490077,3933.3,3931.7,0.8208]
[1734024264750,0.55,3933.0,3931.7,0.8208]
[1734024264952,0.01427865,3932.9,3931.7,0.8208]
[1734024265877,1.3021,3933.0,3931.7,0.8208]
[1734024266083,0.55,3933.4,3931.7,0.8208]
[1734024266301,0.01427865,3933.3,3931.7,0.8208]
[1734024266571,0.18181087,3933.2,3931.7,0.8208]
[1734024266776,0.01427865,3933.1,3931.7,0.8208]
[1734024267005,0.56427865,3933.1,3931.7,0.8208]
[1734024271343,0.18181087,3933.2,3931.7,0.8208]
[1734024271585,0.01427865,3933.1,3931.7,0.8208]
[1734024272249,0.74007065,3933.1,3931.7,0.8208]
[1734024272965,0.01427865,3933.1,3931.7,0.8208]
[1734024275378,0.18181087,3933.2,3931.7,0.8208]
[1734024275566,0.42833008,3933.5,3931.9,0.7554]
[1734024275767,0.757,3933.9,3931.9,0.7554]
[1734024275768,1.06183047,3933.9,3931.9,0.7554]
[1734024276125,0.01427865,3933.9,3931.9,0.7554]
[1734024276300,2.97490077,3933.7,3932.0,0.87693323]
[1734024276462,0.01427865,3933.6,3931.8,0.7554]
[1734024276795,0.29891794,3933.5,3931.8,0.7554]
[1734024276996,0.77127865,3933.4,3931.8,0.7554]
[1734024277174,2.41847101,3933.0,3931.8,0.7554]
[1734024277375,2.41847101,3932.6,3931.8,0.7554]
[1734024277705,0.01427865,3932.5,3931.8,0.7554]
[1734024277856,0.32036497,3932.4,3931.9,0.09927132]
[1734024278055,0.01427865,3932.3,3931.9,0.09927132]
[1734024278286,0.01427865,3932.3,3931.8,0.7554]
[1734024280085,0.32036497,3932.4,3931.8,0.7554]
[1734024280283,0.01427865,3932.4,3931.8,0.7554]
[1734024280525,0.01427865,3932.8,3931.8,0.7554]
[1734024280818,0.01427865,3932.8,3931.9,0.06466702]
[1734024281020,0.01427865,3932.8,3932.3,0.51301194]
[1734024281219,2.41847101,3932.6,3932.3,0.51301194]
[1734024281406,0.25755362,3932.5,3932.3,0.51301194]
[1734024282784,0.24327497,3932.5,3932.3,0.51301194]
[1734024283101,0.25755362,3932.5,3932.3,0.51301194]
[1734024283420,0.24327497,3932.5,3932.3,0.51301194]
[1734024283840,0.01427865,3932.4,3932.3,0.51301194]
[1734024284129,0.28188111,3932.4,3932.3,0.51301194]
[1734024284325,0.28188111,3932.4,3932.3,0.76731194]
[1734024285133,0.28188111,3932.4,3932.0,0.25431]
[1734024285629,2.41847101,3932.2,3931.7,0.12491985]
[1734024285830,2.41847101,3932.2,3932.0,0.25432]
[1734024285831,0.78597865,3932.1,3932.0,0.25432]
[1734024286033,1.13318386,3932.1,3931.7,0.25434]
[1734024286846,1.13318386,3932.1,3932.0,0.25432]
[1734024287003,0.78597865,3932.1,3932.0,0.25432]
[1734024287431,0.7755,3932.6,3932.4,0.25429]
[1734024287608,0.01427865,3932.5,3932.0,0.25432]
[1734024287838,0.01427865,3932.5,3932.0,0.764508]
[1734024288148,0.01427865,3932.5,3932.4,0.25429]
[1734024288447,0.01427865,3932.5,3932.0,0.764508]
[1734024288448,0.21675808,3932.5,3932.1,0.25431]
[1734024288632,0.01427865,3932.5,3932.1,0.25431]
[1734024289030,0.01427865,3932.5,3932.0,0.510188]
[1734024289417,0.01427865,3932.5,3932.3,0.25429]
[1734024289743,0.01427865,3932.5,3932.4,0.25429]
[1734024289966,0.01427865,3932.5,3932.0,0.510188]
[1734024290309,0.01427865,3932.5,3932.1,0.25431]
[1734024290510,0.01427865,3932.5,3932.4,0.25429]
[1734024290713,0.01427865,3932.5,3932.0,0.764498]
[1734024291309,0.01427865,3932.6,3932.5,0.25429]
[1734024291510,0.7925,3932.9,3932.7,0.25427]
[1734024291511,0.01427865,3932.8,3932.7,0.25427]
[1734024291740,0.01427865,3932.8,3932.2,0.2543]
[1734024291944,0.01427865,3932.8,3932.0,0.510188]
[1734024292145,0.01427865,3932.8,3932.7,0.25427]
[1734024292344,0.01427865,3932.8,3932.1,0.25431]
[1734024292509,0.01427865,3932.8,3932.6,0.25428]
[1734024292718,0.18686091,3932.7,3932.3,0.2543]
[1734024293026,0.97936091,3932.7,3932.6,0.25428]
[1734024293247,1.23532369,3933.0,3932.6,0.25428]
[1734024293411,1.23532369,3933.0,3932.3,0.7989]
[1734024293412,1.06183047,3933.0,3932.9,0.25426]
[1734024293766,1.05720914,3933.0,3932.6,0.25428]
[1734024293926,1.76682395,3932.9,3932.1,0.25431]
[1734024294131,1.76682395,3932.9,3932.6,0.51952934]
[1734024294314,1.76682395,3932.9,3932.6,0.08117646]
[1734024294511,0.70962495,3932.9,3932.7,0.50855]
[1734024294754,0.70962495,3932.9,3932.6,0.08117646]
[1734024294957,0.78061512,3932.8,3932.6,0.08117646]
[1734024295259,0.79489377,3932.8,3932.6,0.08117646]
[1734024295753,0.79489377,3932.8,3932.7,0.50854]
[1734024296052,0.79489377,3932.8,3932.6,0.08117646]
[1734024296053,1.85209277,3932.8,3932.6,0.08117646]
[1734024296361,1.7036554,3932.7,3932.6,0.58973646]
[1734024296650,1.7036554,3932.7,3932.1,0.50862]
[1734024296951,0.01427865,3932.6,3932.5,0.50858]
[1734024297290,0.78061512,3932.8,3932.1,0.50862]
[1734024297291,0.25,3934.4,3933.4,0.50846]
[1734024297553,2.41847101,3934.2,3932.8,0.50854]
[1734024297710,0.25,3934.7,3933.2,0.50848]
[1734024297711,2.41847101,3933.8,3933.2,0.50848]
[1734024297916,0.2418471,3933.7,3932.7,0.50855]
[1734024298115,2.41847101,3933.4,3932.8,0.50854]
[1734024298339,2.41847101,3933.4,3932.1,0.7554]
[1734024298780,2.41847101,3933.4,3932.8,0.50854]
[1734024298985,2.41847101,3933.4,3932.8,0.09535125]
[1734024298986,1.59117991,3932.9,3932.8,0.09535125]
[1734024299184,0.37127531,3932.9,3932.3,0.5086]
[1734024299492,0.37127531,3932.9,3932.4,0.50859]
[1734024299493,1.59141097,3932.6,3932.4,0.50859]
[1734024299654,1.59141097,3932.6,3932.5,0.50858]
[1734024299848,1.59073216,3932.6,3932.5,0.50858]
[1734024300178,2.82586802,3932.6,3932.5,0.50858]
[1734024300379,3.76842102,3932.8,3932.5,0.50858]
[1734024300380,2.82586802,3932.7,3932.5,0.50858]
[1734024300686,2.82586802,3932.7,3931.3,0.12887259]
[1734024300687,0.49286944,3932.7,3931.3,0.12887259]
[1734024300843,0.49286944,3932.7,3930.8,3.55]
[1734024300844,0.49286944,3932.7,3932.6,0.50856]
[1734024301043,1.55363998,3932.7,3932.6,0.50856]
[1734024301244,3.32350792,3932.7,3932.6,0.50856]
[1734024302087,2.0836016,3932.7,3932.6,0.50856]
[1734024302447,0.49286944,3932.7,3932.6,0.50856]
[1734024302643,0.49286944,3932.7,3932.0,0.50863]
[1734024302949,1.06117942,3932.3,3932.0,0.50863]
[1734024303153,1.59176913,3932.3,3931.0,1.01754]
[1734024303472,1.85340526,3931.8,3930.3,0.50886]
[1734024303782,1.85340526,3931.8,3929.9,2.1018601]
[1734024303783,1.06130526,3931.6,3931.3,0.50873]
[1734024303983,1.59176913,3931.5,3931.0,0.50876]
[1734024304287,0.7921,3931.1,3930.8,0.50879]
[1734024304481,1.06091146,3931.0,3930.8,0.50879]
[1734024304696,2.83202956,3931.0,3930.6,0.50882]
[1734024304943,1.06017227,3930.8,3930.3,0.50886]
[1734024305187,0.7921,3931.1,3930.4,0.50884]
[1734024305188,1.06017227,3931.1,3930.4,0.50884]
[1734024305350,1.06017227,3931.1,3930.0,0.7704]
[1734024305351,0.26519414,3931.0,3930.9,0.50878]
[1734024305680,1.05985478,3931.1,3931.0,0.50877]
[1734024305883,1.05995883,3931.5,3930.9,1.33458]
[1734024306090,1.05995883,3931.5,3931.4,0.50872]
[1734024306324,1.59176913,3932.1,3931.1,0.50876]